bitfinex/quotes_BTCUSD_20250916
["timestamp","ask_amount","ask_price","bid_price","bid_amount"]
[1758032720095,1.74553,115280.0,115270.0,0.08654145]
[1758032720779,1.37501,115280.0,115270.0,0.08654145]
[1758032720989,1.74541,115280.0,115270.0,0.08654145]
[1758032721433,1.37501,115280.0,115270.0,0.08654145]
[1758032721652,1.74525,115280.0,115270.0,0.08654145]
[1758032721859,1.37501,115280.0,115270.0,0.08654145]
[1758032722049,1.74521,115280.0,115270.0,0.08654145]
[1758032722352,1.74513,115280.0,115270.0,0.08654145]
[1758032723260,1.37501,115280.0,115270.0,0.08654145]
[1758032723524,1.33057113,115280.0,115270.0,0.08654145]
[1758032724180,1.33049113,115280.0,115270.0,0.08654145]
[1758032725045,0.91597226,115280.0,115270.0,0.08654145]
[1758032725286,1.33049113,115280.0,115270.0,0.08654145]
[1758032725736,1.33029113,115280.0,115270.0,0.08654145]
[1758032725956,1.33025113,115280.0,115270.0,0.08654145]
[1758032726608,0.96049113,115280.0,115270.0,0.08654145]
[1758032726791,1.33017113,115280.0,115270.0,0.08654145]
[1758032727557,0.96049113,115280.0,115270.0,0.08654145]
[1758032727764,1.33017113,115280.0,115270.0,0.08654145]
[1758032728842,1.32997113,115280.0,115270.0,0.08654145]
[1758032729068,1.74449,115280.0,115270.0,0.08654145]
[1758032729965,1.76073165,115280.0,115270.0,4e-05]
[1758032730647,1.47461165,115280.0,115270.0,4e-05]
[1758032730902,1.76061165,115280.0,115270.0,4e-05]
[1758032731534,0.9376656,115280.0,115270.0,4e-05]
[1758032731753,1.78668481,115280.0,115270.0,4e-05]
[1758032732194,2.29379698,115280.0,115270.0,4e-05]
[1758032732651,1.87927811,115280.0,115270.0,4e-05]
[1758032732868,1.87727811,115280.0,115270.0,4e-05]
[1758032733310,1.88227811,115280.0,115270.0,0.00104]
[1758032733538,1.88027811,115280.0,115270.0,0.00104]
[1758032733764,1.88427811,115280.0,115270.0,0.00104]
[1758032734725,1.88027811,115280.0,115270.0,0.00104]
[1758032735335,1.91043001,115280.0,115270.0,0.00104]
[1758032735942,1.91243001,115280.0,115270.0,0.00204]
[1758032737901,1.91243001,115280.0,115250.0,4e-05]
[1758032737902,1.75707734,115260.0,115250.0,4e-05]
[1758032738144,2.05855899,115260.0,115250.0,4e-05]
[1758032738389,1.38866012,115260.0,115250.0,4e-05]
[1758032738649,1.67400012,115260.0,115250.0,4e-05]
[1758032738867,1.38876012,115260.0,115250.0,4e-05]
[1758032739081,1.67396012,115260.0,115250.0,4e-05]
[1758032739301,1.67496012,115260.0,115250.0,0.00304]
[1758032739741,1.67504012,115260.0,115250.0,0.00304]
[1758032740625,1.67688012,115260.0,115250.0,0.00304]
[1758032741733,0.56272238,115260.0,115250.0,0.00304]
[1758032741940,1.67684012,115260.0,115250.0,0.00304]
[1758032742179,2.09135899,115260.0,115250.0,0.00304]
[1758032742656,1.67684012,115260.0,115250.0,0.00304]
[1758032742870,2.09135899,115260.0,115250.0,0.00304]
[1758032743508,2.09744288,115260.0,115250.0,0.00304]
[1758032744156,2.09135899,115260.0,115250.0,0.00304]
[1758032745671,2.09131899,115260.0,115250.0,0.00304]
[1758032745885,1.67680012,115260.0,115250.0,0.00304]
[1758032746106,1.67672012,115260.0,115250.0,0.00304]
[1758032746541,1.67668012,115260.0,115250.0,0.00304]
[1758032746763,1.72532012,115260.0,115250.0,0.00304]
[1758032746976,2.01024012,115260.0,115250.0,0.00304]
[1758032749030,1.72532012,115260.0,115250.0,0.00304]
[1758032749218,2.01024012,115260.0,115250.0,0.00304]
[1758032751204,2.01022784,115260.0,115250.0,0.00304]
[1758032751624,1.99399847,115260.0,115250.0,0.00304]
[1758032754366,2.02007639,115260.0,115250.0,0.00304]
[1758032758218,1.71054639,115260.0,115250.0,0.00304]
[1758032758422,2.01882639,115260.0,115250.0,0.00304]
[1758032758627,1.68123847,115260.0,115250.0,0.00513]
[1758032758833,1.96611847,115260.0,115250.0,0.00513]
[1758032759016,1.96611847,115260.0,115250.0,0.02915]
[1758032759901,1.96611847,115260.0,115250.0,0.00513]
[1758032760300,1.98951847,115260.0,115250.0,0.00513]
[1758032761173,2.32307847,115260.0,115250.0,0.00513]
[1758032761399,2.32630847,115260.0,115250.0,0.00513]
[1758032762100,2.32630847,115260.0,115250.0,0.00304]
[1758032763011,2.32630847,115260.0,115250.0,0.00513]
[1758032763012,1.49727073,115260.0,115250.0,0.00513]
[1758032763236,2.32630847,115260.0,115250.0,0.00513]
[1758032763670,2.32630847,115260.0,115250.0,0.00304]
[1758032765921,2.40966847,115260.0,115250.0,0.00304]
[1758032766773,1.58063073,115260.0,115250.0,0.00304]
[1758032766982,2.40966847,115260.0,115250.0,0.00304]
[1758032768886,0.17355085,115240.0,115220.0,0.0001]
[1758032769136,0.17355085,115240.0,115210.0,4e-05]
[1758032769137,0.5126356,115220.0,115210.0,4e-05]
[1758032769371,1.96206334,115220.0,115210.0,4e-05]
[1758032769591,1.54754447,115220.0,115210.0,4e-05]
[1758032769833,1.57440447,115220.0,115210.0,4e-05]
[1758032770054,1.57450447,115220.0,115210.0,0.00051228]
[1758032770764,1.98902334,115220.0,115210.0,0.00051228]
[1758032771266,2.05980492,115220.0,115210.0,0.00051228]
[1758032771503,2.06857209,115220.0,115210.0,0.00051228]
[1758032771729,1.34264885,115200.0,115190.0,0.0001]
[1758032771983,2.12536772,115200.0,115190.0,0.00024171]
[1758032772214,1.72913925,115200.0,115190.0,0.00024171]
[1758032772425,1.75599925,115200.0,115190.0,0.00024171]
[1758032772657,1.782091,115200.0,115190.0,0.00024171]
[1758032773120,1.498291,115200.0,115190.0,0.00124171]
[1758032773341,1.788091,115200.0,115190.0,0.00224171]
[1758032774253,1.788091,115200.0,115190.0,0.00214171]
[1758032774906,1.503291,115200.0,115190.0,0.00214171]
[1758032775128,1.788131,115200.0,115190.0,0.00214171]
[1758032775797,0.95909326,115200.0,115190.0,0.00214171]
[1758032776014,1.69693552,115200.0,115190.0,0.00214171]
[1758032776236,1.69688467,115200.0,115190.0,0.00214171]
[1758032776486,1.41204467,115200.0,115190.0,0.00214171]
[1758032776706,1.69688467,115200.0,115190.0,0.00214171]
[1758032777381,0.95904241,115200.0,115190.0,0.00214171]
[1758032777599,1.41204467,115200.0,115190.0,0.00214171]
[1758032777830,1.69688467,115200.0,115190.0,0.00214171]
[1758032779181,1.74572467,115200.0,115190.0,0.00214171]
[1758032779444,1.37680354,115200.0,115190.0,0.00214171]
[1758032779656,1.66162395,115200.0,115190.0,0.00214171]
[1758032780310,1.66162298,115200.0,115190.0,0.00214171]
[1758032782295,1.26882185,115200.0,115190.0,0.00214171]
[1758032782530,1.60668123,115200.0,115190.0,0.02995171]
[1758032783212,1.32184123,115200.0,115190.0,0.11645316]
[1758032783725,1.60664123,115200.0,115190.0,0.11645316]
[1758032783958,1.60668123,115200.0,115190.0,0.11645316]
[1758032784201,0.98184123,115200.0,115190.0,0.29007934]
[1758032784424,1.26664123,115200.0,115190.0,0.11645316]
[1758032785030,1.26664123,115200.0,115190.0,0.29007934]
[1758032787448,1.26664123,115200.0,115190.0,0.09075316]
[1758032788338,1.66441236,115200.0,115190.0,0.00214171]
[1758032789214,1.2665701,115200.0,115190.0,0.00214171]
[1758032789429,2.00441236,115200.0,115190.0,0.00214171]
[1758032791109,2.00442064,115200.0,115190.0,0.00214171]
[1758032792148,2.03457254,115200.0,115190.0,0.00214171]
[1758032793412,1.75325159,115200.0,115190.0,0.00214171]
[1758032793631,2.03797159,115200.0,115190.0,0.00214171]
[1758032795332,2.04403659,115200.0,115190.0,0.00214171]
[1758032796178,1.75931659,115200.0,115190.0,0.00214171]
[1758032796383,2.04403659,115200.0,115190.0,0.00214171]
[1758032798231,2.37775659,115200.0,115190.0,0.00214171]
[1758032798490,0.51362618,115190.0,115180.0,4e-05]
[1758032798663,1.18942958,115190.0,115180.0,4e-05]
[1758032798870,1.19156958,115190.0,115180.0,4e-05]
[1758032799071,1.21753958,115190.0,115180.0,4e-05]
[1758032799272,1.21763958,115190.0,115180.0,4e-05]
[1758032799498,0.56403845,115190.0,115180.0,4e-05]
[1758032799649,1.21763958,115190.0,115180.0,0.00207]
[1758032800083,1.21863958,115190.0,115180.0,0.00207]
[1758032800512,0.93395958,115190.0,115180.0,4e-05]
[1758032800726,1.21863958,115190.0,115180.0,4e-05]
[1758032800927,0.93695958,115190.0,115180.0,0.00104]
[1758032801097,1.22159958,115190.0,115180.0,0.00104]
[1758032801534,0.91400958,115190.0,115180.0,0.00104]
[1758032801737,0.54002825,115190.0,115180.0,0.11725145]
[1758032801959,1.19358938,115190.0,115180.0,0.11725145]
[1758032802392,0.82466825,115190.0,115180.0,0.11725145]
[1758032802526,1.19361338,115190.0,115180.0,0.11725145]
[1758032804375,1.19361417,115190.0,115180.0,0.11725145]
[1758032804585,0.02642686,115190.0,115180.0,0.2908927]
[1758032804811,0.02875479,115190.0,115180.0,0.2908927]
[1758032805013,0.31335479,115190.0,115180.0,0.2908927]
[1758032805222,0.30493707,115190.0,115180.0,0.2908927]
[1758032805442,0.30493707,115190.0,115180.0,0.2909927]
[1758032807314,0.30493912,115190.0,115180.0,0.2909927]
[1758032810814,0.02033912,115190.0,115180.0,0.2909927]
[1758032811035,0.31327684,115190.0,115180.0,0.2909927]
[1758032811262,0.30485912,115190.0,115180.0,0.2909927]
[1758032815261,0.28862,115190.0,115180.0,0.2909927]
[1758032815910,0.83116731,115190.0,115180.0,0.2909927]
[1758032816115,0.84740649,115190.0,115180.0,0.11735145]
[1758032816332,0.84740639,115190.0,115180.0,0.2909927]
[1758032816758,0.47848526,115190.0,115180.0,0.2909927]
[1758032816982,0.84740639,115190.0,115180.0,0.2909927]
[1758032817197,0.83116731,115190.0,115180.0,0.2909927]
[1758032819042,0.46224618,115190.0,115180.0,0.2879327]
[1758032819255,0.83116731,115190.0,115180.0,0.2879327]
[1758032819476,0.83116731,115190.0,115180.0,0.2909927]
[1758032820130,0.46208618,115190.0,115180.0,0.2879327]
[1758032820388,0.46208618,115190.0,115180.0,0.2908827]
[1758032820598,0.83100731,115190.0,115180.0,0.2908827]
[1758032821280,0.83100731,115190.0,115180.0,0.2879327]
[1758032821953,0.83100731,115190.0,115180.0,0.2908827]
[1758032822448,0.83301731,115190.0,115180.0,0.2879327]
[1758032822676,0.83301731,115190.0,115170.0,0.17375431]
[1758032822677,0.54379315,115180.0,115170.0,0.0001]
[1758032822923,1.2979068,115180.0,115170.0,0.0001]
[1758032823167,1.2979068,115180.0,115160.0,0.0001]
[1758032823168,0.51365633,115170.0,115160.0,0.0001]
[1758032823396,0.17367141,115160.0,115150.0,0.00034]
[1758032823644,0.53737141,115160.0,115150.0,0.00024]
[1758032823886,1.19061254,115160.0,115150.0,0.00024]
[1758032824115,1.19071254,115160.0,115150.0,0.00024]
[1758032824591,1.55963367,115160.0,115150.0,0.00024]
[1758032824822,1.56845431,115160.0,115150.0,0.00024]
[1758032826216,1.56845431,115160.0,115150.0,0.00124]
[1758032826217,1.56945431,115160.0,115150.0,0.00124]
[1758032827321,1.99595576,115160.0,115150.0,0.00124]
[1758032827762,1.99943586,115160.0,115150.0,0.00124]
[1758032828663,2.02958776,115160.0,115150.0,0.00124]
[1758032829366,1.2917455,115160.0,115150.0,0.00124]
[1758032829593,2.11508921,115160.0,115150.0,0.00024]
[1758032830031,1.83276921,115160.0,115150.0,0.00124]
[1758032830251,2.13320191,115160.0,115150.0,0.00124]
[1758032830471,2.11704921,115160.0,115150.0,0.00124]
[1758032830699,2.13319996,115160.0,115150.0,0.00124]
[1758032831126,2.13519996,115160.0,115150.0,0.00224]
[1758032831316,1.85091996,115160.0,115150.0,0.00224]
[1758032831568,2.13519996,115160.0,115150.0,0.00224]
[1758032832890,1.85091996,115160.0,115150.0,0.00224]
[1758032833127,2.13519996,115160.0,115150.0,0.00224]
[1758032834217,1.85091996,115160.0,115150.0,0.00224]
[1758032834441,2.13523996,115160.0,115150.0,0.00224]
[1758032834651,2.04869851,115160.0,115150.0,0.00224]
[1758032835975,1.76441851,115160.0,115150.0,0.00224]
[1758032836192,2.04869851,115160.0,115150.0,0.00224]
[1758032838051,2.14166117,115160.0,115150.0,0.00224]
[1758032838509,1.85738117,115160.0,115150.0,0.00224]
[1758032838734,2.14162117,115160.0,115150.0,0.00224]
[1758032840508,1.63971726,115160.0,115150.0,0.00224]
[1758032840710,2.05511972,115160.0,115150.0,0.00224]
[1758032841494,2.38899972,115160.0,115150.0,0.00224]
[1758032841697,2.56200262,115160.0,115150.0,0.00224]
[1758032846350,2.56804821,115160.0,115150.0,0.00224]
[1758032847787,2.28380821,115160.0,115150.0,0.00224]
[1758032847938,2.56796821,115160.0,115150.0,0.00224]
[1758032850383,3.00766924,115160.0,115150.0,0.00224]
[1758032850607,3.05758924,115160.0,115150.0,1e-08]
[1758032850830,2.64218678,115160.0,115150.0,1e-08]
[1758032851267,2.64018678,115160.0,115150.0,1e-08]
[1758032851489,0.17370158,115140.0,115130.0,0.0002]
[1758032851702,1.76437474,115140.0,115130.0,0.0002]
[1758032851931,1.79150474,115140.0,115130.0,0.00224]
[1758032852396,1.50742474,115140.0,115130.0,0.00224]
[1758032852597,1.79150474,115140.0,115130.0,0.00224]
[1758032852819,1.79150474,115140.0,115130.0,0.00238174]
[1758032853418,0.67761982,115140.0,115130.0,0.00338174]
[1758032853764,1.79246474,115140.0,115130.0,0.00338174]
[1758032853971,1.79346474,115140.0,115130.0,0.00438174]
[1758032854622,1.79346474,115140.0,115130.0,0.03018174]
[1758032854623,1.73628284,115140.0,115130.0,0.03018174]
[1758032854965,1.45224284,115140.0,115130.0,0.03018174]
[1758032855195,1.73628284,115140.0,115130.0,0.03018174]
[1758032857580,1.73628284,115140.0,115130.0,0.29039985]
[1758032857581,0.39173634,115140.0,115130.0,0.29039985]
[1758032857804,0.98084038,115140.0,115130.0,0.11668319]
[1758032858259,0.98084038,115140.0,115130.0,0.29039985]
[1758032859608,0.56543792,115140.0,115130.0,0.29039985]
[1758032859833,0.56543792,115140.0,115130.0,0.11668319]
[1758032859834,0.98084038,115140.0,115130.0,0.11668319]
[1758032860755,1.31472038,115140.0,115130.0,0.11668319]
[1758032861459,1.30867479,115140.0,115130.0,0.11668319]
[1758032861718,0.85097321,115140.0,115130.0,0.29039985]
[1758032861942,1.30859479,115140.0,115130.0,0.28989985]
[1758032862164,1.30866842,115140.0,115130.0,0.28989985]
[1758032862392,1.30866842,115140.0,115130.0,0.28999985]
[1758032864506,0.89326596,115140.0,115130.0,0.28999985]
[1758032864734,1.30866842,115140.0,115130.0,0.28999985]
[1758032866336,0.43564438,115140.0,115130.0,0.28999985]
[1758032866567,0.43564438,115140.0,115130.0,0.70540231]
[1758032866568,0.70322,115140.0,115130.0,0.70540231]
[1758032867651,0.70312,115140.0,115130.0,0.70540231]
[1758032867867,0.70312,115140.0,115130.0,0.77049382]
[1758032868080,0.70212,115140.0,115130.0,0.76949382]
[1758032868764,0.70212,115140.0,115130.0,0.35409136]
[1758032869004,0.70312,115140.0,115130.0,0.77149382]
[1758032869448,0.41932,115140.0,115130.0,0.77149382]
[1758032869669,0.70308,115140.0,115130.0,0.77149382]
[1758032870363,0.70308,115140.0,115130.0,1.17149382]
[1758032871792,0.70308,115140.0,115130.0,0.75609136]
[1758032872011,0.70308,115140.0,115130.0,1.17149382]
[1758032873368,0.70308,115140.0,115130.0,1.44139382]
[1758032874999,0.70308,115140.0,115130.0,1.02599136]
[1758032875431,1.11848246,115140.0,115130.0,0.96089985]
[1758032876076,0.70308,115140.0,115130.0,0.56089985]
[1758032876295,1.11848246,115140.0,115130.0,0.56089985]
[1758032877265,0.70308,115140.0,115130.0,0.56089985]
[1758032877485,1.11848246,115140.0,115130.0,0.56089985]
[1758032879205,1.11848246,115140.0,115130.0,0.29099985]
[1758032879434,1.29228404,115140.0,115130.0,0.29099985]
[1758032879920,1.79941795,115140.0,115130.0,0.00498174]
[1758032880151,1.7355865,115140.0,115130.0,0.00498174]
[1758032880385,1.7324365,115140.0,115130.0,0.00498174]
[1758032880600,1.7321565,115140.0,115130.0,0.00498174]
[1758032880821,1.7094865,115140.0,115130.0,0.00498174]
[1758032881025,1.7074065,115140.0,115130.0,0.00498174]
[1758032881238,1.7074065,115140.0,115130.0,0.02828174]
[1758032881903,1.7094865,115140.0,115130.0,0.00498174]
[1758032882103,1.7074065,115140.0,115130.0,0.00498174]
[1758032882339,1.7074065,115140.0,115130.0,0.02828174]
[1758032882522,1.29196404,115140.0,115130.0,0.2047584]
[1758032882730,1.11826246,115140.0,115130.0,0.29125985]
[1758032883652,0.41942,115140.0,115130.0,0.29125985]
[1758032883911,0.41942,115140.0,115130.0,0.70666231]
[1758032884152,0.70286,115140.0,115130.0,0.70666231]
[1758032885798,0.70286,115140.0,115130.0,1.10666231]
[1758032886257,0.70286,115140.0,115130.0,0.69125985]
[1758032886474,0.70286,115140.0,115130.0,1.10666231]
[1758032888561,0.41942,115140.0,115130.0,1.10666231]
[1758032888811,0.70274,115140.0,115130.0,1.10666231]
[1758032889297,1.29184404,115140.0,115130.0,0.49424319]
[1758032889550,1.7364765,115140.0,115130.0,0.08974319]
[1758032889801,1.7364765,115140.0,115130.0,0.00324174]
[1758032890496,1.7354765,115140.0,115130.0,0.00224174]
[1758032890924,1.7344765,115140.0,115130.0,0.00024174]
[1758032891151,1.7344765,115140.0,115130.0,0.00014174]
[1758032891368,1.7354765,115140.0,115130.0,0.00214174]
[1758032892208,1.7364765,115140.0,115130.0,0.00314174]
[1758032893206,2.0764765,115140.0,115130.0,0.00314174]
[1758032896248,1.7931565,115140.0,115130.0,0.00314174]
[1758032896449,2.0763565,115140.0,115130.0,0.00314174]
[1758032897883,1.61480314,115140.0,115130.0,0.00314174]
[1758032898913,1.33160314,115140.0,115130.0,0.00314174]
[1758032899352,1.61472314,115140.0,115130.0,0.00314174]
[1758032899912,1.33160314,115140.0,115130.0,0.00314174]
[1758032900123,1.61472314,115140.0,115130.0,0.00314174]
[1758032902016,1.59056314,115140.0,115130.0,0.00314174]
[1758032902231,1.61472314,115140.0,115130.0,0.00314174]
[1758032903334,1.33160314,115140.0,115130.0,0.00314174]
[1758032903580,0.96235158,115140.0,115130.0,0.00314174]
[1758032903807,1.58745314,115140.0,115130.0,0.00521174]
[1758032904231,1.61161314,115140.0,115130.0,0.00521174]
[1758032904451,1.61464314,115140.0,115130.0,0.00314174]
[1758032905244,1.33160314,115140.0,115130.0,0.00314174]
[1758032905682,1.59044314,115140.0,115130.0,0.00521174]
[1758032906377,1.61460314,115140.0,115130.0,0.00521174]
[1758032907428,1.59044314,115140.0,115130.0,0.00521174]
[1758032907667,1.61460314,115140.0,115130.0,0.00521174]
[1758032908968,1.24535158,115140.0,115130.0,0.00521174]
[1758032909388,1.57923158,115140.0,115130.0,0.00521174]
[1758032909830,1.57923158,115140.0,115130.0,0.00314174]
[1758032910248,1.26700158,115140.0,115130.0,0.00521174]
[1758032910460,1.54992158,115140.0,115130.0,0.26818985]
[1758032910682,1.54992158,115140.0,115130.0,0.29148985]
[1758032910916,0.92700158,115140.0,115130.0,0.29148985]
[1758032911124,1.20988158,115140.0,115130.0,0.29148985]
[1758032911566,0.7533,115140.0,115130.0,0.29148985]
[1758032911775,1.20988158,115140.0,115130.0,0.28872985]
[1758032912242,1.03618,115140.0,115130.0,0.29148985]
[1758032912686,0.7533,115140.0,115130.0,0.29148985]
[1758032912921,0.7533,115140.0,115130.0,0.66074141]
[1758032913144,1.03614,115140.0,115130.0,0.66074141]
[1758032913594,1.03614,115140.0,115130.0,0.66084141]
[1758032913807,0.7533,115140.0,115130.0,0.66084141]
[1758032914023,1.0361,115140.0,115130.0,0.66084141]
[1758032914256,0.70222,115140.0,115130.0,0.66084141]
[1758032916059,0.70222,115140.0,115130.0,1.06084141]
[1758032916277,0.70122,115140.0,115130.0,1.05884141]
[1758032916710,0.70222,115140.0,115130.0,1.06084141]
[1758032916927,0.70122,115140.0,115130.0,1.05984141]
[1758032917397,0.70112,115140.0,115130.0,1.05984141]
[1758032917582,0.70212,115140.0,115130.0,1.06084141]
[1758032918530,0.70212,115140.0,115130.0,0.69158985]
[1758032918771,0.87582158,115140.0,115130.0,1.06084141]
[1758032919423,0.70212,115140.0,115130.0,1.06084141]
[1758032919644,0.70212,115140.0,115130.0,0.49181319]
[1758032919645,0.87582158,115140.0,115130.0,0.49181319]
[1758032919857,0.90229158,115140.0,115130.0,0.49181319]
[1758032920273,0.90229158,115140.0,115130.0,0.09181319]
[1758032921153,0.90239158,115140.0,115130.0,0.09181319]
[1758032921853,0.87795158,115140.0,115130.0,0.09181319]
[1758032922065,0.87795158,115140.0,115130.0,0.26552985]
[1758032922519,0.87795158,115140.0,115130.0,0.09181319]
[1758032923577,0.87795158,115140.0,115130.0,0.26552985]
[1758032924225,0.87795158,115140.0,115130.0,0.09181319]
[1758032924453,0.87795158,115140.0,115130.0,0.26552985]
[1758032924645,0.87795158,115140.0,115130.0,0.28826985]
[1758032924883,0.87592158,115140.0,115130.0,0.28826985]
[1758032926286,0.87592158,115140.0,115130.0,0.28830985]
[1758032929388,0.90540158,115140.0,115130.0,0.08978319]
[1758032930519,0.90500158,115140.0,115130.0,0.26560985]
[1758032930737,0.90195158,115140.0,115130.0,0.26560985]
[1758032930933,0.61959158,115140.0,115130.0,0.26560985]
[1758032931402,0.90195158,115140.0,115130.0,0.26560985]
[1758032931763,0.41942,115140.0,115130.0,0.66036141]
[1758032931962,0.70178,115140.0,115130.0,0.66036141]
[1758032932169,0.41942,115140.0,115130.0,0.66036141]
[1758032932428,0.70178,115140.0,115130.0,0.66036141]
[1758032933606,0.70178,115140.0,115130.0,1.06036141]
[1758032934116,0.70178,115140.0,115130.0,0.69110985]
[1758032934318,0.70178,115140.0,115130.0,1.06036141]
[1758032935697,0.41942,115140.0,115130.0,1.06036141]
[1758032935990,0.70166,115140.0,115130.0,1.06036141]
[1758032937517,0.70166,115140.0,115130.0,0.69110985]
[1758032937777,0.70166,115140.0,115130.0,1.06036141]
[1758032939317,0.70166,115140.0,115130.0,0.66036141]
[1758032939762,0.70166,115140.0,115130.0,1.06036141]
[1758032941595,0.70166,115140.0,115130.0,0.69110985]
[1758032941833,0.70166,115140.0,115130.0,1.06036141]
[1758032942646,0.7015,115140.0,115130.0,1.06036141]
[1758032944063,0.7015,115140.0,115130.0,0.69110985]
[1758032944261,0.7015,115140.0,115130.0,1.06036141]
[1758032945660,0.7015,115140.0,115130.0,0.69110985]
[1758032945879,0.87730158,115140.0,115130.0,0.26560985]
[1758032946085,0.90511158,115140.0,115130.0,0.26560985]
[1758032946576,0.90511158,115140.0,115130.0,0.09189319]
[1758032946831,0.90511158,115140.0,115130.0,0.08978319]
[1758032948553,1.27436314,115140.0,115130.0,0.08978319]
[1758032948765,0.90511158,115140.0,115130.0,0.08978319]
[1758032948983,1.27436314,115140.0,115130.0,0.08978319]
[1758032950048,0.99228314,115140.0,115130.0,0.08978319]
[1758032950259,0.62303158,115140.0,115130.0,0.08978319]
[1758032950465,1.27416314,115140.0,115130.0,0.08978319]
[1758032950878,0.90491158,115140.0,115130.0,0.08978319]
[1758032951506,0.62303158,115140.0,115130.0,0.26349985]
[1758032951733,0.90491158,115140.0,115130.0,0.26349985]
[1758032951858,0.99228314,115140.0,115130.0,0.26349985]
[1758032952078,0.90194158,115140.0,115130.0,0.26349985]
[1758032952275,1.09749156,115140.0,115130.0,0.26563985]
[1758032952483,0.70336,115140.0,115130.0,0.26563985]
[1758032953105,0.70126,115140.0,115130.0,0.29192985]
[1758032953314,0.41942,115140.0,115130.0,0.29192985]
[1758032953518,0.70122,115140.0,115130.0,0.29192985]
[1758032953909,0.41942,115140.0,115130.0,0.29192985]
[1758032954127,0.70122,115140.0,115130.0,0.66118141]
[1758032954343,0.41942,115140.0,115130.0,0.66118141]
[1758032954557,0.70122,115140.0,115130.0,0.66118141]
[1758032954976,0.41942,115140.0,115130.0,0.66118141]
[1758032955176,0.70112,115140.0,115130.0,0.66118141]
[1758032956320,0.70112,115140.0,115130.0,1.06118141]
[1758032956530,0.70108,115140.0,115130.0,1.06118141]
[1758032957812,0.70108,115140.0,115130.0,1.10707634]
[1758032959822,0.70108,115140.0,115130.0,0.69192985]
[1758032960035,0.70108,115140.0,115130.0,1.10707634]
[1758032966769,0.002,115140.0,115130.0,1.10707634]
[1758032966969,0.33584,115140.0,115130.0,1.10707634]
[1758032968307,0.33584,115140.0,115130.0,0.69192985]
[1758032968560,0.41928,115140.0,115130.0,1.10707634]
[1758032968982,0.70072,115140.0,115130.0,1.10707634]
[1758032971948,0.70072,115140.0,115130.0,1.13317182]
[1758032974063,0.70072,115140.0,115130.0,1.40307182]
[1758032977627,0.70072,115140.0,115130.0,0.98792533]
[1758032977872,0.70072,115140.0,115130.0,1.40307182]
[1758032980661,0.41928,115140.0,115130.0,1.40307182]
[1758032980889,0.70044,115140.0,115130.0,1.40307182]
[1758032982264,0.7004,115140.0,115130.0,1.40307182]
[1758032985476,0.70032,115140.0,115130.0,1.40307182]
[1758032990800,0.70032,115140.0,115130.0,0.98792533]
[1758032991029,0.70032,115140.0,115130.0,0.96439533]
[1758032991135,0.70032,115140.0,115130.0,0.55949533]
[1758032991136,1.12046649,115140.0,115130.0,0.55949533]
[1758032991137,1.14352649,115140.0,115130.0,0.53339985]
[1758032991492,1.31722807,115140.0,115130.0,0.53339985]
[1758032991949,1.31722807,115140.0,115130.0,0.26349985]
[1758032992379,0.83640649,115140.0,115130.0,0.26565985]
[1758032992642,1.11728649,115140.0,115130.0,0.26565985]
[1758032992902,0.42126,115140.0,115130.0,0.28848985]
[1758032993165,0.44432,115140.0,115130.0,0.26565985]
[1758032993433,0.41928,115140.0,115130.0,0.28848985]
[1758032993701,0.70012,115140.0,115130.0,0.70639634]
[1758032995004,0.70012,115140.0,115130.0,1.10639634]
[1758032996088,0.41928,115140.0,115130.0,1.10639634]
[1758032996306,0.70012,115140.0,115130.0,0.69124985]
[1758032996487,0.70012,115140.0,115130.0,1.10639634]
[1758032999133,0.41928,115140.0,115130.0,1.10639634]
[1758032999354,0.7,115140.0,115130.0,1.10639634]
[1758033000178,0.7,115140.0,115130.0,0.69124985]
[1758033000588,0.7,115140.0,115130.0,1.10639634]
[1758033006591,0.7,115140.0,115130.0,0.69124985]
[1758033007025,0.7,115140.0,115130.0,1.10639634]
[1758033008193,0.7,115140.0,115130.0,0.69124985]
[1758033008410,0.7,115140.0,115130.0,1.10639634]
[1758033008832,0.7,115140.0,115130.0,0.69124985]
[1758033009061,0.7,115140.0,115130.0,1.10639634]
[1758033009916,0.7,115140.0,115130.0,0.69124985]
[1758033010136,0.7,115140.0,115130.0,1.10639634]
[1758033010685,0.69976,115140.0,115130.0,1.10639634]
[1758033011434,0.41928,115140.0,115130.0,1.10639634]
[1758033011649,0.69972,115140.0,115130.0,0.69124985]
[1758033011845,0.69972,115140.0,115130.0,1.10639634]
[1758033013424,0.69972,115140.0,115130.0,0.68848985]
[1758033013654,0.69972,115140.0,115130.0,1.10363634]
[1758033014116,0.69972,115140.0,115130.0,0.68848985]
[1758033014303,0.69972,115140.0,115130.0,1.10363634]
[1758033015002,0.69968,115140.0,115130.0,1.10639634]
[1758033015221,0.69964,115140.0,115130.0,0.68848985]
[1758033015431,0.69964,115140.0,115130.0,0.69124985]
[1758033015639,0.69964,115140.0,115130.0,1.10639634]
[1758033016994,0.3658,115140.0,115130.0,1.10639634]
[1758033017269,0.08544,115140.0,115130.0,1.10639634]
[1758033017488,0.36576,115140.0,115130.0,1.10639634]
[1758033017700,0.08544,115140.0,115130.0,1.10639634]
[1758033017912,0.36576,115140.0,115130.0,1.06026212]
[1758033018785,0.36576,115140.0,115130.0,1.33016212]
[1758033019002,0.08544,115140.0,115130.0,1.33016212]
[1758033019220,0.36572,115140.0,115130.0,1.35625698]
[1758033019929,0.36568,115140.0,115130.0,1.35625698]
[1758033021996,0.39079,115140.0,115130.0,0.96165471]
[1758033022227,0.394,115140.0,115130.0,0.93555985]
[1758033022503,0.39079,115140.0,115130.0,0.93555985]
[1758033022725,0.36777,115140.0,115130.0,0.93555985]
[1758033023219,0.36777,115140.0,115130.0,0.53339985]
[1758033023220,0.76301227,115140.0,115130.0,0.53339985]
[1758033023430,0.394,115140.0,115130.0,0.53339985]
[1758033023834,0.394,115140.0,115130.0,0.53538985]
[1758033024054,0.37098,115140.0,115130.0,0.53538985]
[1758033024258,0.3656,115140.0,115130.0,0.55954985]
[1758033024462,0.08544,115140.0,115130.0,0.28964985]
[1758033024670,0.3656,115140.0,115130.0,0.63726212]
[1758033024894,0.3656,115140.0,115130.0,0.66142212]
[1758033026552,0.3656,115140.0,115130.0,0.29240985]
[1758033026751,0.3656,115140.0,115130.0,0.28964985]
[1758033027322,0.3656,115140.0,115130.0,0.68964985]
[1758033029379,0.36769,115140.0,115130.0,0.66548985]
[1758033029578,0.39071,115140.0,115130.0,0.66548985]
[1758033029818,0.39392,115140.0,115130.0,0.66548985]
[1758033030206,0.39392,115140.0,115130.0,0.26548985]
[1758033030411,0.70153,115140.0,115130.0,0.26548985]
[1758033030619,0.70153,115140.0,115130.0,0.28964985]